bitfinex/quotes_ETHUSD_20260313
["timestamp","ask_amount","ask_price","bid_price","bid_amount"]
[1773387286304,0.48743522,2096.2,2095.8,1.8011]
[1773387286506,0.48391193,2096.1,2095.5,0.0011]
[1773387286786,0.48391193,2096.1,2095.5,1.24184653]
[1773387287705,0.48391193,2096.1,2095.6,1.806]
[1773387287903,0.48391193,2095.9,2095.6,1.806]
[1773387288428,0.001,2096.2,2095.7,0.09608844]
[1773387288615,0.48391193,2096.7,2096.1,0.80915874]
[1773387288800,0.48491193,2096.7,2096.1,0.09608844]
[1773387288994,1.19231403,2096.8,2096.2,1.793]
[1773387288995,0.48391193,2096.5,2096.2,1.793]
[1773387289198,0.48491193,2096.4,2096.2,1.793]
[1773387289427,0.48391193,2096.4,2096.2,1.793]
[1773387289926,0.48391193,2096.4,2095.7,0.09608844]
[1773387290128,0.48491193,2096.3,2095.8,1.19286191]
[1773387290306,1.67737901,2096.5,2095.9,0.09608844]
[1773387290512,0.48391193,2096.4,2095.9,0.09608844]
[1773387290914,0.48391193,2096.4,2096.0,1.796]
[1773387292027,0.48391193,2096.4,2096.0,2.98869622]
[1773387294733,0.48391193,2096.4,2096.0,3.08478466]
[1773387295437,0.001,2096.3,2096.0,3.08478466]
[1773387297549,0.47569396,2096.6,2096.1,0.09608844]
[1773387297918,0.001,2096.6,2096.1,0.09608844]
[1773387298135,0.47569396,2097.0,2096.4,0.09608844]
[1773387298444,0.47669396,2097.0,2096.5,1.89908844]
[1773387298615,0.001,2096.9,2096.6,0.09608844]
[1773387298820,0.001,2097.1,2096.6,0.09608844]
[1773387299050,0.47569396,2097.2,2096.6,0.09608844]
[1773387299226,0.75975224,2097.4,2096.6,0.09608844]
[1773387299227,1.2354462,2097.4,2096.6,0.09608844]
[1773387299540,1.2354462,2097.4,2096.8,0.09608844]
[1773387300241,1.2354462,2097.4,2096.9,1.19223615]
[1773387300444,0.75975224,2097.4,2097.0,0.09608844]
[1773387300668,0.47569396,2097.5,2096.9,1.19223615]
[1773387300835,0.47489396,2097.5,2096.7,4.76932211]
[1773387301151,0.47489396,2097.5,2096.8,1.805]
[1773387301349,0.47569396,2097.4,2096.8,1.805]
[1773387302445,0.47569396,2097.2,2096.8,1.805]
[1773387302820,0.47569396,2097.2,2096.5,1.19242991]
[1773387303019,0.47569396,2097.2,2096.3,4.7702387]
[1773387303324,0.47569396,2097.2,2096.3,4.81794179]
[1773387304257,0.47569396,2097.2,2096.4,1.806]
[1773387304749,0.47569396,2097.0,2096.4,2.99847293]
[1773387305667,0.47569396,2097.0,2096.4,1.806]
[1773387306057,0.47569396,2097.0,2096.4,2.99849539]
[1773387306868,0.47569396,2096.9,2096.4,2.99849539]
[1773387307170,0.47569396,2096.9,2096.4,3.04619621]
[1773387308039,0.47569396,2096.9,2096.4,2.99849539]
[1773387308463,0.47569396,2096.9,2096.4,3.09538383]
[1773387310268,0.47569396,2096.9,2096.6,0.0011]
[1773387312362,0.47569396,2096.9,2096.6,1.19350675]
[1773387312863,0.47569396,2097.2,2096.6,1.29039519]
[1773387313268,0.47569396,2097.2,2096.6,1.19350675]
[1773387314572,0.47569396,2097.1,2096.6,1.19350675]
[1773387317263,0.47569396,2097.0,2096.6,0.0011]
[1773387318391,0.47569396,2097.0,2096.6,1.19350454]
[1773387319290,0.47569396,2097.0,2096.6,0.0011]
[1773387319506,0.47569396,2096.7,2096.4,0.0011]
[1773387319667,0.47569396,2096.7,2096.5,1.808]
[1773387321687,0.45345154,2096.9,2096.5,3.00046114]
[1773387322277,0.45345154,2096.9,2096.5,1.808]
[1773387322592,0.45345154,2096.9,2096.5,3.00045563]
[1773387322792,0.45345154,2096.9,2096.5,1.808]
[1773387323095,0.45345154,2096.9,2096.7,0.0011]
[1773387323394,0.45445154,2096.9,2096.7,0.0011]
[1773387323590,1.6466889,2096.9,2096.7,0.0011]
[1773387323778,0.45345154,2096.8,2096.7,0.0011]
[1773387329598,0.45345154,2096.8,2096.4,1.19357729]
[1773387329599,0.45345154,2096.7,2096.4,0.0011]
[1773387329771,0.45345154,2096.7,2096.4,1.19361174]
[1773387330102,0.001,2096.9,2096.6,0.09798844]
[1773387330700,0.001,2096.9,2096.7,1.19234988]
[1773387330878,0.001,2096.9,2096.7,2.99734988]
[1773387331674,0.001,2096.9,2096.7,1.805]
[1773387332286,0.001,2096.9,2096.7,1.90298844]
[1773387333181,0.001,2096.9,2096.7,3.09533048]
[1773387333701,0.001,2096.9,2096.7,1.90298844]
[1773387334008,0.45445154,2096.9,2096.7,1.805]
[1773387334209,0.45445154,2096.9,2096.5,1.19245206]
[1773387334890,0.45445154,2096.9,2096.5,1.33813904]
[1773387335279,0.45445154,2096.9,2096.6,1.803]
[1773387335911,0.45445154,2096.9,2096.8,0.0011]
[1773387336583,0.001,2096.9,2096.8,0.0011]
[1773387337100,0.45345154,2097.7,2096.9,0.09798844]
[1773387337388,0.001,2097.8,2097.5,1.64892583]
[1773387337598,0.001,2097.8,2097.6,1.802]
[1773387337775,0.45345154,2098.0,2097.6,1.802]
[1773387337980,1.19160282,2098.1,2097.6,2.25903072]
[1773387338193,1.19160282,2098.1,2097.7,0.45703072]
[1773387339408,4.76635385,2098.5,2097.7,0.45703072]
[1773387339409,0.45345154,2098.4,2097.7,0.45703072]
[1773387339584,0.45345154,2098.3,2097.7,0.45703072]
[1773387339920,0.45445154,2098.5,2097.8,0.45703072]
[1773387340081,0.45345154,2098.3,2097.6,1.802]
[1773387340405,0.45345154,2098.2,2097.6,1.802]
[1773387340909,0.45345154,2098.2,2097.4,0.45703072]
[1773387341110,0.45345154,2098.0,2097.2,1.19206507]
[1773387341278,0.45345154,2097.9,2096.8,4.77022798]
[1773387341484,0.45345154,2097.9,2097.1,1.19212245]
[1773387341485,0.45345154,2097.7,2097.1,1.19212245]
[1773387341816,1.64494901,2098.2,2097.2,0.45703072]
[1773387342012,0.45345154,2098.1,2097.3,0.45703072]
[1773387342386,0.45345154,2098.1,2097.5,0.45703072]
[1773387343829,0.45345154,2098.1,2097.6,1.19183829]
[1773387343997,0.49056214,2098.0,2097.2,1.65934481]
[1773387344836,0.49056214,2098.0,2097.2,0.46728039]
[1773387345401,0.49056214,2098.0,2097.3,1.803]
[1773387345624,0.49056214,2098.0,2097.3,2.27028039]
[1773387345798,1.19166785,2097.9,2097.3,3.46224096]
[1773387347024,1.68221691,2098.0,2097.4,0.46728039]
[1773387347829,1.68221691,2098.0,2097.5,1.19189511]
[1773387348133,1.68221691,2098.0,2097.4,0.46728039]
[1773387348134,1.68221691,2098.0,2097.4,1.65919646]
[1773387348503,0.49056214,2097.9,2097.2,1.65932443]
[1773387348703,0.49056214,2097.9,2097.3,1.803]
[1773387349340,0.001,2097.7,2097.3,1.803]
[1773387349633,0.49156214,2097.7,2097.3,1.803]
[1773387350531,1.68335306,2097.7,2097.3,1.803]
[1773387350735,1.68335306,2097.7,2097.3,2.99500798]
[1773387351119,1.68335306,2097.7,2097.3,1.803]
[1773387351438,0.47180932,2097.6,2097.3,1.803]
[1773387352936,0.47180932,2097.6,2097.3,2.99499751]
[1773387353319,1.19278684,2097.7,2097.3,2.99499751]
[1773387354039,1.19278684,2097.7,2097.3,1.803]
[1773387355835,1.19278684,2097.7,2097.3,3.48235672]
[1773387356639,1.19278684,2097.7,2097.3,2.29035028]
[1773387357343,1.66459616,2097.7,2097.3,2.29035028]
[1773387359043,0.47180932,2097.6,2097.3,1.803]
[1773387360319,0.47180932,2097.6,2097.1,0.48735028]
[1773387360818,1.66370215,2097.6,2097.1,1.67944531]
[1773387361016,1.66370215,2097.6,2097.1,1.67864531]
[1773387361545,1.66370215,2097.6,2097.2,1.801]
[1773387361745,1.66370215,2097.6,2097.5,0.0011]
[1773387366846,0.47180932,2097.5,2097.3,0.0011]
[1773387367653,0.47180932,2097.3,2097.0,0.0011]
[1773387368727,0.47180932,2097.3,2097.1,1.799]
[1773387369640,0.47180932,2097.2,2097.1,1.799]
[1773387370152,0.47180932,2097.2,2097.0,0.0011]
[1773387371629,0.47180932,2097.2,2097.1,1.798]
[1773387372165,0.47180932,2097.1,2096.8,0.0011]
[1773387372465,0.47180932,2097.0,2096.8,0.0011]
[1773387372758,1.19204135,2097.3,2096.9,0.39805311]
[1773387372943,1.66385067,2097.3,2096.9,0.39805311]
[1773387373436,0.47180932,2097.2,2096.8,0.0011]
[1773387373635,0.47180932,2097.1,2096.8,0.0011]
[1773387373834,0.47180932,2097.0,2096.9,1.797]
[1773387374146,1.19223615,2096.9,2096.8,0.0011]
[1773387374363,1.66404547,2096.9,2096.8,0.0011]
[1773387374952,0.47180932,2096.9,2096.8,0.0011]
[1773387375658,0.47180932,2096.9,2096.8,1.7981]
[1773387376033,1.19229301,2096.8,2096.5,0.39915311]
[1773387376250,1.66408049,2096.9,2096.6,0.0011]
[1773387377461,0.47180932,2096.8,2096.6,0.0011]
[1773387377962,0.47180932,2096.8,2096.7,1.796]
[1773387378163,1.19234988,2096.7,2096.5,0.0011]
[1773387379033,1.6641592,2096.7,2096.5,0.0011]
[1773387380133,1.19234988,2096.7,2096.5,0.0011]
[1773387382361,1.19234988,2096.7,2096.6,1.795]
[1773387382862,0.44567364,2096.6,2096.5,0.0011]
[1773387384756,0.44567364,2096.6,2096.3,0.39805311]
[1773387385359,0.44567364,2096.6,2096.4,1.793]
[1773387387540,0.34852351,2096.6,2096.5,0.39805311]
[1773387387739,0.00010398,2096.6,2096.5,0.19805311]
[1773387387971,0.00010398,2096.6,2096.5,0.24575165]
[1773387388265,1.69179842,2096.9,2096.5,0.24575165]
[1773387388633,1.69179842,2096.9,2096.7,0.0011]
[1773387391152,0.49954035,2096.8,2096.7,0.0011]
[1773387391535,0.14948499,2097.9,2096.8,0.19805311]
[1773387391841,1.19278705,2097.7,2097.2,0.19805311]
[1773387392040,1.19278932,2097.7,2097.3,1.783]
[1773387392264,1.69232967,2097.7,2097.3,1.783]
[1773387392640,1.69232967,2097.7,2097.3,1.98105311]
[1773387392957,0.001,2097.7,2097.3,1.98105311]
[1773387395066,1.19278147,2097.7,2097.3,1.98105311]
[1773387395239,1.69232182,2097.7,2097.3,1.98105311]
[1773387395565,0.49954035,2097.6,2096.9,0.19805311]
[1773387395870,0.49954035,2097.6,2097.4,1.785]
[1773387396038,0.49954035,2097.6,2096.9,0.19805311]
[1773387397142,1.19189511,2097.5,2097.0,3.17523241]
[1773387397662,1.19189511,2097.5,2097.0,2.9771793]
[1773387397863,1.19189511,2097.5,2097.1,0.19805311]
[1773387398793,0.49954035,2097.4,2097.0,1.785]
[1773387399071,0.49954035,2097.3,2097.0,1.785]
[1773387400069,0.49954035,2097.2,2097.0,1.785]
[1773387400369,1.69153084,2097.4,2097.0,1.98305311]
[1773387401078,1.69153084,2097.4,2097.2,0.0011]
[1773387401840,0.49954035,2097.3,2097.2,0.0011]
[1773387404272,1.69154912,2097.3,2096.8,0.19805311]
[1773387404448,0.48734918,2097.1,2096.7,0.0011]
[1773387404872,1.19200877,2097.3,2096.8,0.19805311]
[1773387405070,0.001,2097.5,2097.0,0.19805311]
[1773387405238,1.68024875,2097.5,2097.0,0.19805311]
[1773387405439,0.48734918,2097.4,2096.8,0.19805311]
[1773387405644,0.48734918,2097.4,2097.1,1.786]
[1773387407250,1.19292858,2097.5,2097.1,1.786]
[1773387407561,1.19290219,2097.5,2097.1,2.97809862]
[1773387407741,1.19290219,2097.5,2097.1,1.786]
[1773387407943,1.68025137,2097.5,2097.1,2.97812014]
[1773387408162,1.68025137,2097.5,2097.1,1.786]
[1773387408373,1.19290219,2097.5,2097.1,3.1761738]
[1773387408574,1.19290219,2097.5,2097.2,0.19805311]
[1773387408957,0.001,2097.5,2097.2,0.19805311]
[1773387409974,0.48834918,2097.5,2097.1,1.786]
[1773387411389,1.65979447,2097.4,2097.1,1.786]
[1773387413787,1.65979447,2097.4,2097.2,0.0011]
[1773387414087,0.001,2097.3,2097.2,0.0011]
[1773387423519,0.001,2097.3,2097.2,0.09656472]
[1773387423813,2.73187964,2097.5,2097.3,0.09446472]
[1773387424383,0.001,2097.5,2097.3,0.09446472]
[1773387426309,0.001,2097.5,2097.3,1.28644992]
[1773387426612,0.001,2097.5,2097.4,0.09446472]
[1773387427909,0.46884253,2097.5,2097.2,0.09556472]
[1773387428111,0.001,2097.5,2097.3,1.784]
[1773387428284,0.001,2097.5,2097.3,3.11815018]
[1773387428611,0.001,2097.5,2097.4,0.09446472]
[1773387429183,0.001,2097.7,2097.5,0.09346472]
[1773387429383,1.9770387,2098.1,2097.7,0.09346472]
[1773387429384,0.31761552,2098.1,2097.7,0.09346472]
[1773387429695,0.31761552,2098.1,2097.9,0.09346472]
[1773387430009,0.31761552,2098.1,2098.0,1.87746472]
[1773387430512,1.19143065,2098.4,2098.0,1.87746472]
[1773387430897,1.65927318,2098.4,2098.0,1.87746472]
[1773387431716,0.46784253,2098.3,2098.0,1.784]
[1773387432417,1.65930129,2098.3,2098.0,1.784]
[1773387437132,0.46884253,2098.5,2098.1,0.09346472]
[1773387437339,1.66018694,2098.5,2098.1,0.09346472]
[1773387437907,1.66017025,2098.5,2098.1,0.09346472]
[1773387438541,0.001,2098.3,2098.2,1.28496219]
[1773387438736,0.46784253,2099.3,2098.5,0.09246472]
[1773387439036,4.76317843,2099.5,2098.9,0.09246472]
[1773387439037,1.19081642,2099.4,2098.9,0.09246472]
[1773387439218,0.46784253,2099.5,2099.0,2.68387441]
[1773387439407,0.001,2099.6,2099.2,0.89987441]
[1773387439607,0.33158651,2099.8,2099.3,0.09246472]
[1773387439807,1.52218576,2099.8,2099.3,0.09246472]
[1773387440411,0.46784253,2099.7,2099.4,1.784]
[1773387440660,1.65854552,2099.6,2099.5,1.784]
[1773387440953,1.65854552,2099.6,2099.1,1.28344326]
[1773387442127,0.46784253,2099.6,2099.2,1.784]
[1773387442842,1.1907597,2099.5,2099.2,1.784]
[1773387443642,0.45376763,2099.4,2098.8,1.19112758]
[1773387443828,0.45376763,2099.4,2098.9,1.784]
[1773387445313,1.64459676,2099.4,2098.9,2.97505766]
[1773387447243,0.46165905,2099.3,2098.9,1.784]
[1773387447544,1.19092987,2099.2,2098.9,1.784]
[1773387447715,1.65258892,2099.2,2098.9,1.784]
[1773387449139,0.46165905,2099.2,2098.9,1.784]
[1773387449841,1.65259395,2099.2,2098.9,1.784]
[1773387452024,0.46165905,2099.3,2098.9,1.784]
[1773387453728,0.46165905,2099.3,2099.0,0.03083534]
[1773387454051,1.19092987,2099.2,2098.9,1.784]
[1773387455859,1.19092987,2099.2,2098.9,1.86068189]
[1773387456160,1.65351342,2099.4,2098.9,3.05177895]
[1773387456734,1.65351342,2099.4,2098.9,2.97509706]
[1773387456929,1.19185437,2099.4,2099.0,0.07668189]
[1773387457363,1.65351342,2099.4,2099.0,0.07668189]
[1773387457559,0.46165905,2099.3,2098.9,1.784]
[1773387458463,1.65258892,2099.2,2098.9,1.784]
[1773387458831,0.46165905,2099.1,2098.5,0.07668189]
[1773387460237,0.46165905,2099.1,2098.6,1.786]
[1773387460865,0.46165905,2099.1,2098.2,0.0011]
[1773387460866,0.46165905,2098.7,2098.2,0.0011]
[1773387462060,0.46165905,2098.7,2098.3,1.76]
[1773387462264,0.46165905,2098.7,2098.0,0.0011]
[1773387462766,0.46165905,2098.5,2098.0,0.0011]
[1773387463136,0.46165905,2098.4,2098.0,0.0011]
[1773387463541,0.46165905,2098.4,2098.0,1.7631]
[1773387464153,0.46165905,2098.4,2098.2,0.0011]
[1773387465767,1.65304296,2098.4,2098.3,1.767]
[1773387466057,0.46745535,2098.3,2097.7,1.26955771]
[1773387466561,0.46745535,2098.3,2097.7,0.07778189]
[1773387467042,0.46745535,2098.3,2097.7,0.0011]
[1773387468066,1.65895282,2098.2,2097.8,1.77]
[1773387468769,1.19149747,2098.2,2097.8,1.84668189]
[1773387470047,4.76591332,2098.3,2097.8,1.84668189]
[1773387470252,5.23336867,2098.3,2097.8,1.84668189]
[1773387470857,0.48684172,2098.2,2097.8,1.77]
[1773387471468,0.48684172,2098.0,2097.7,0.0011]
[1773387471974,1.67850957,2097.9,2097.7,0.0011]
[1773387472545,0.48684172,2097.8,2097.7,0.0011]
[1773387473169,0.48684172,2097.8,2097.4,0.50077723]
[1773387473952,1.67857021,2097.8,2097.4,1.69272443]
[1773387474845,1.67857021,2097.8,2097.5,1.776]
[1773387475666,1.19160039,2098.1,2097.6,0.07668189]
[1773387475873,1.67837781,2098.2,2097.6,0.07668189]
[1773387476047,1.67837781,2098.2,2097.7,1.26846336]
[1773387476449,0.48684172,2098.4,2097.8,0.07668189]
[1773387476650,0.001,2098.1,2097.8,0.07668189]
[1773387478978,0.001,2098.1,2097.8,1.26835466]
[1773387482884,0.001,2098.1,2097.9,0.07668189]
[1773387483186,0.001,2098.1,2097.7,0.07668189]
[1773387484197,0.48784172,2098.1,2097.6,0.0011]
[1773387485073,1.67943297,2098.1,2097.6,0.07778189]
[1773387487291,0.48784172,2098.1,2097.7,1.19178147]
[1773387487594,0.48784172,2098.1,2097.7,0.07668189]
[1773387487895,1.19255773,2098.1,2097.7,0.07668189]
[1773387488696,1.19255773,2098.1,2097.8,0.0011]
[1773387489099,0.001,2097.9,2097.8,0.07778189]
[1773387492104,0.001,2097.9,2097.8,0.0011]
[1773387497033,0.001,2098.1,2097.8,0.16900762]
[1773387497800,4.76511344,2098.6,2098.0,0.14394584]
[1773387497801,0.48684172,2098.6,2098.0,0.14394584]
[1773387497979,0.48684172,2098.6,2098.1,1.784]
[1773387499004,0.48684172,2098.6,2098.3,0.14394584]
[1773387500802,0.48684172,2098.6,2098.3,1.33538074]
[1773387501716,0.45619528,2098.5,2098.1,0.04766217]
[1773387502013,0.45619528,2098.3,2097.9,1.23929502]
[1773387502587,1.64756688,2098.5,2098.0,0.14394584]
[1773387502810,1.64756688,2098.5,2098.1,1.977608]
[1773387503703,0.45619528,2098.4,2098.1,1.83366216]
[1773387504002,1.64763597,2098.3,2098.1,1.83366216]
[1773387504206,1.64763597,2098.3,2098.1,1.786]
[1773387506108,1.64763597,2098.3,2097.5,0.0011]
[1773387506109,0.80721383,2098.2,2097.5,0.0011]
[1773387506310,0.45619528,2097.9,2097.3,0.0011]
[1773387506687,0.45619528,2097.9,2097.4,0.4085515]
[1773387506895,0.45619528,2097.7,2097.4,0.4085515]
[1773387507389,0.45619528,2097.7,2097.5,1.787]
[1773387508112,1.64803357,2097.6,2097.5,1.787]
[1773387508710,0.45619528,2098.2,2097.5,1.787]
[1773387509006,0.45619528,2098.2,2097.6,0.0022]
[1773387509411,0.45619528,2098.1,2097.6,0.0022]
[1773387509607,0.80721383,2098.0,2097.5,1.787]
[1773387509811,0.45619528,2097.9,2097.5,1.7892]
[1773387510015,1.19172466,2097.8,2097.5,1.7892]
[1773387510219,0.45619528,2097.7,2097.5,1.7892]
[1773387511727,1.18952466,2097.8,2097.5,1.787]
[1773387511886,1.19170243,2097.9,2097.5,1.787]
[1773387512090,1.64793517,2097.8,2097.5,1.787]
[1773387512911,0.45619528,2097.8,2097.5,1.787]
[1773387513408,1.64792764,2097.8,2097.5,1.787]
[1773387513625,0.45619528,2097.8,2097.5,1.787]
[1773387513921,1.64792067,2097.8,2097.5,1.787]
[1773387514912,0.45619528,2097.8,2097.5,1.787]
[1773387515095,1.64781678,2098.0,2097.5,2.97888609]
[1773387516117,0.45619528,2097.9,2097.5,2.97888609]
[1773387516421,0.45619528,2097.9,2097.5,1.787]
[1773387516931,1.64789325,2097.9,2097.7,0.0011]
[1773387517303,0.45619528,2097.8,2097.1,0.0011]
[1773387517511,0.45619528,2097.8,2097.5,0.0011]
[1773387518520,0.45619528,2097.8,2097.6,1.787]
[1773387519027,1.64797675,2097.7,2097.6,1.787]
[1773387519218,1.64797675,2097.7,2097.5,0.0011]
[1773387520391,1.64797675,2097.7,2097.6,1.786]
[1773387520629,1.19176711,2097.8,2097.6,1.786]
[1773387521132,0.45719528,2097.9,2097.6,1.786]
[1773387522236,0.45719528,2097.9,2097.5,0.0011]
[1773387523358,0.45619528,2097.7,2097.5,0.0011]
[1773387523645,0.45619528,2097.7,2097.6,1.786]
[1773387524148,0.45619528,2097.7,2097.2,0.0011]
[1773387525732,0.45290602,2097.5,2097.2,0.0011]
[1773387526350,1.19183829,2097.6,2097.2,0.0011]
[1773387526547,1.64469375,2097.7,2097.2,0.14614584]
[1773387527553,1.64469375,2097.7,2097.3,1.785]
[1773387527849,1.64469375,2097.7,2097.4,0.04767807]
[1773387529144,0.45290602,2097.6,2097.3,1.785]
[1773387530248,1.64480113,2097.5,2097.4,0.0011]
[1773387532081,4.76812589,2097.9,2097.4,0.0011]
[1773387532082,0.45886031,2097.7,2097.4,0.0011]
[1773387532383,1.65064802,2097.7,2097.4,0.0011]
[1773387532977,1.19178771,2097.7,2097.4,0.14614584]
[1773387533171,1.19178771,2097.7,2097.4,0.0011]
[1773387533372,0.45886031,2097.6,2097.4,0.0011]
[1773387534861,1.19180695,2097.7,2097.4,0.0011]
[1773387535451,1.65066726,2097.7,2097.4,0.0011]
[1773387537047,0.45886031,2097.6,2097.4,0.0011]
[1773387540351,0.45886031,2097.5,2097.4,0.0011]
[1773387541179,0.45886031,2097.5,2097.2,0.0011]
[1773387541673,1.65080244,2097.5,2097.2,0.0011]
[1773387542374,1.65180244,2097.5,2097.4,0.0011]
[1773387543354,0.45886031,2097.4,2097.1,0.0011]
[1773387543553,0.45886031,2097.2,2097.0,0.0011]
[1773387544686,4.76861301,2097.5,2097.2,0.14614584]
[1773387544687,0.001,2097.5,2097.2,0.14614584]
[1773387544993,1.65071844,2097.6,2097.2,0.15813007]
[1773387545380,1.19185813,2097.6,2097.2,0.15813007]
[1773387545752,5.22614735,2097.7,2097.2,0.15813007]
[1773387545959,5.22614735,2097.7,2097.3,0.14614584]
[1773387546267,1.65064178,2097.7,2097.3,0.14614584]
[1773387546462,0.45886031,2097.7,2097.4,0.14614584]
[1773387546669,1.65152902,2097.9,2097.5,0.0476758]
[1773387546969,1.65045781,2098.1,2097.6,0.14614584]
[1773387547272,1.65045781,2098.1,2097.7,1.783]
[1773387548259,0.45886031,2098.0,2097.7,1.783]
[1773387549986,1.65047282,2098.0,2097.7,1.783]
[1773387550977,0.45886031,2097.9,2097.7,1.783]
[1773387551286,0.45886031,2097.9,2097.3,1.33815342]
[1773387551479,0.45886031,2097.9,2097.4,0.14614584]
[1773387551853,0.45886031,2097.9,2097.5,0.0476758]
[1773387552089,1.6504581,2098.1,2097.6,1.33798413]
[1773387552276,1.6504581,2098.1,2097.7,1.782]
[1773387552470,0.45886031,2098.0,2097.7,1.782]
[1773387553058,0.45886031,2098.0,2097.4,0.14614584]
[1773387553279,0.45886031,2098.0,2097.4,1.33809727]
[1773387554281,0.45886031,2097.8,2097.4,0.14614584]
[1773387554458,0.45886031,2097.8,2097.5,1.781]
[1773387555580,0.45986031,2097.8,2097.5,1.781]
[1773387556086,0.45986031,2097.8,2097.4,0.0011]
[1773387556260,1.65064178,2097.7,2097.4,0.0011]
[1773387556461,0.45886031,2097.6,2097.4,0.0011]
[1773387556871,1.65162961,2097.8,2097.4,0.0011]
[1773387557197,0.45886031,2097.7,2097.4,0.0011]
[1773387557697,0.45886031,2097.7,2097.5,1.781]
[1773387558697,1.65064553,2097.7,2097.5,1.781]
[1773387559098,1.65064553,2097.7,2097.1,0.0011]
[1773387559099,0.45886031,2097.6,2097.1,0.0011]
[1773387559389,0.45886031,2097.5,2096.7,1.33958941]
[1773387560186,0.45886031,2097.5,2096.8,0.14614584]
[1773387560761,1.64974097,2097.4,2096.9,3.11938199]
[1773387561988,0.45778903,2097.4,2097.0,0.14614584]
[1773387563686,1.64976626,2097.4,2097.0,0.14614584]
[1773387564612,0.45778903,2097.3,2096.9,1.781]
[1773387565293,0.45778903,2097.3,2096.9,2.97323492]
[1773387566262,0.45778903,2097.3,2097.0,0.04768717]
[1773387566466,1.64980021,2097.3,2097.0,0.04768717]
[1773387566891,1.64980021,2097.3,2096.9,1.781]
[1773387566892,0.45778903,2097.2,2096.9,1.781]
[1773387567189,0.45778903,2097.2,2096.7,0.0011]
[1773387567774,0.45778903,2097.2,2097.1,0.0011]
[1773387568170,1.64985464,2097.2,2097.1,0.0011]
[1773387568582,1.64985464,2097.2,2097.1,1.7821]
[1773387568784,1.19206561,2097.2,2096.9,0.0011]
[1773387568974,0.45778903,2097.1,2096.9,0.0011]
[1773387570404,1.64991148,2097.1,2097.0,1.781]
[1773387570614,0.45778903,2097.0,2096.9,0.0011]
[1773387570982,0.45778903,2097.0,2096.6,0.0011]
[1773387572519,0.45778903,2097.0,2096.7,1.781]
[1773387572722,1.19223615,2096.9,2096.7,1.781]
[1773387573004,0.45778903,2096.9,2096.7,1.781]
[1773387573201,0.45778903,2096.9,2096.6,0.0011]
[1773387574902,1.65008204,2096.8,2096.7,1.78]
[1773387575107,1.65008204,2096.8,2096.6,0.0011]
[1773387577198,1.65008204,2096.8,2096.7,1.78]
[1773387578406,1.65008204,2096.8,2096.6,0.0011]
[1773387580314,0.45778903,2096.8,2096.6,0.0011]
[1773387580500,1.19228177,2096.9,2096.6,0.0011]
[1773387580700,1.6500708,2096.9,2096.8,0.0011]
[1773387582121,1.6500708,2096.9,2096.6,0.0011]
[1773387582302,0.45778903,2096.8,2096.6,0.0011]
[1773387582497,1.65011522,2096.8,2096.6,0.0011]
[1773387584316,1.65011522,2096.8,2096.7,1.779]
[1773387585219,1.65011522,2096.8,2096.6,0.0011]
[1773387586102,1.65009781,2096.8,2096.6,0.0011]
[1773387587296,1.65009781,2096.8,2096.7,1.778]
[1773387587496,0.45778903,2096.8,2096.7,1.778]
[1773387587714,1.65008204,2096.8,2096.7,1.778]
[1773387588088,1.65008204,2096.8,2096.6,0.0011]
[1773387589221,0.46698502,2096.7,2096.6,0.0011]
[1773387589516,0.46698502,2096.7,2096.5,0.0011]
[1773387589517,1.65939177,2096.6,2096.5,0.0011]
[1773387590324,1.65938199,2096.7,2096.5,0.0011]
[1773387590505,0.46698502,2096.6,2096.5,0.0011]
[1773387590698,0.46698502,2096.6,2096.5,1.7791]
[1773387592799,1.65939177,2096.6,2096.5,1.7791]
[1773387593313,1.66039177,2096.6,2096.3,0.16622357]
[1773387594898,0.46798502,2096.6,2096.3,0.16622357]
[1773387595226,0.49830061,2096.5,2096.1,0.0011]
[1773387596523,0.49830061,2096.5,2096.1,0.15233221]
[1773387597152,1.69082112,2096.4,2096.1,0.15233221]
[1773387597346,0.49830061,2096.3,2096.1,0.0011]
[1773387597837,0.49830061,2096.3,2096.2,1.778]
[1773387598047,0.49830061,2096.3,2095.8,0.15123221]
[1773387598211,0.49830061,2096.3,2095.8,1.34409002]
[1773387599120,0.49830061,2096.2,2095.8,1.34409002]
[1773387599329,0.49830061,2096.2,2095.9,0.15123221]
[1773387599529,0.80922437,2096.6,2096.0,0.15123221]
[1773387599530,0.001,2096.6,2096.0,0.15123221]
[1773387599737,1.19341162,2096.6,2096.0,0.15123221]
[1773387599955,0.49830061,2096.5,2096.0,0.15123221]
[1773387600326,1.69171223,2096.6,2096.0,0.15123221]
[1773387600650,1.69171223,2096.6,2096.1,1.777]
[1773387600819,1.69171223,2096.6,2096.2,0.15123221]
[1773387601448,1.19341162,2096.6,2096.2,0.19893758]
[1773387601649,0.49830061,2096.5,2096.1,2.96963563]
[1773387602047,0.49830061,2096.5,2096.1,2.9696872]
[1773387602232,0.49830061,2096.5,2096.1,1.777]
[1773387602945,0.49830061,2096.5,2096.1,2.96969059]
[1773387603128,0.49830061,2096.5,2096.1,3.12540799]
[1773387604149,0.49830061,2096.4,2096.1,1.777]
[1773387605352,0.49830061,2096.4,2096.3,0.0011]
[1773387605943,5.57888674,2096.6,2096.3,0.0011]
[1773387605944,0.001,2096.6,2096.3,0.1568174]
[1773387606145,0.61519266,2097.5,2096.7,0.1547174]
[1773387606330,0.61519266,2097.5,2097.2,0.96294177]
[1773387606526,0.001,2097.6,2097.3,1.9317174]
[1773387607954,0.001,2097.6,2097.1,0.1547174]
[1773387607955,1.69114189,2097.6,2097.1,0.1547174]
[1773387608143,1.69114189,2097.6,2097.2,1.777]
[1773387608144,0.49830061,2097.5,2097.2,1.777]
[1773387608349,0.49830061,2097.5,2097.3,1.777]
[1773387610871,0.49830061,2097.4,2097.3,1.777]
[1773387611032,0.49830061,2097.4,2096.7,1.34703898]
[1773387612128,0.49830061,2097.4,2096.8,2.96724243]
[1773387614056,0.49830061,2097.3,2096.8,1.775]
[1773387614260,0.49830061,2097.3,2096.8,3.01497722]
[1773387614757,0.49830061,2097.4,2096.9,0.1547174]
[1773387616539,1.69025502,2097.4,2096.9,0.1547174]
[1773387616931,0.49830061,2097.3,2096.9,0.1547174]
[1773387618158,0.001,2097.1,2096.9,0.1547174]
[1773387620541,0.001,2097.1,2097.0,0.20240457]
[1773387620741,0.49830061,2097.5,2097.1,0.1537174]